bitfinex/quotes_BTCUSD_20241004
["timestamp","ask_amount","ask_price","bid_price","bid_amount"]
[1728011583878,0.04473816,61101.0,61100.0,0.021]
[1728011584010,0.20840116,61101.0,61100.0,0.021]
[1728011584250,0.25742735,61101.0,61100.0,0.021]
[1728011585343,0.23176655,61101.0,61100.0,0.021]
[1728011585547,0.06810355,61101.0,61100.0,0.021]
[1728011586549,0.06810429,61101.0,61100.0,0.021]
[1728011589454,0.23176729,61101.0,61100.0,0.021]
[1728011590323,0.23178199,61101.0,61100.0,0.021]
[1728011590546,0.21432719,61101.0,61100.0,0.021]
[1728011590767,0.23178707,61101.0,61100.0,0.021]
[1728011590990,0.25630016,61101.0,61100.0,0.021]
[1728011591195,0.39408169,61101.0,61100.0,0.021]
[1728011591411,0.49213407,61101.0,61100.0,0.021]
[1728011592285,0.39408169,61101.0,61100.0,0.021]
[1728011592490,0.61214717,61101.0,61100.0,0.021]
[1728011592698,0.48958169,61101.0,61100.0,0.021]
[1728011592946,0.58958169,61101.0,61100.0,0.021]
[1728011593153,0.163684,61094.0,61090.0,0.34028224]
[1728011593354,0.01745988,61093.0,61090.0,0.34028224]
[1728011593556,0.01745988,61092.0,61090.0,0.259292]
[1728011593789,0.01745988,61091.0,61090.0,0.259292]
[1728011594010,0.04902349,61095.0,61090.0,0.259292]
[1728011594460,0.0174095,61091.0,61090.0,0.267292]
[1728011594879,0.0174095,61091.0,61090.0,0.259292]
[1728011595594,0.0174095,61091.0,61090.0,0.270292]
[1728011595815,0.0174095,61091.0,61090.0,0.259292]
[1728011596015,0.04307262,61091.0,61090.0,0.259292]
[1728011596224,0.04307262,61091.0,61090.0,0.278292]
[1728011596648,0.04307262,61091.0,61090.0,0.271292]
[1728011597278,0.02566312,61091.0,61090.0,0.271292]
[1728011597494,0.04303437,61091.0,61090.0,0.271292]
[1728011597707,0.04403437,61091.0,61090.0,0.282292]
[1728011600837,0.04403705,61091.0,61090.0,0.282292]
[1728011602366,0.01837393,61091.0,61090.0,0.282292]
[1728011603020,0.01837393,61091.0,61090.0,0.1186]
[1728011607826,0.01837393,61091.0,61090.0,0.282292]
[1728011609353,0.02000993,61091.0,61090.0,0.282292]
[1728011610712,0.002636,61091.0,61090.0,0.282292]
[1728011610933,0.0199903,61091.0,61090.0,0.1186]
[1728011611367,0.03734038,61091.0,61090.0,0.1186]
[1728011611578,0.01998608,61091.0,61090.0,0.1186]
[1728011612293,0.01998608,61091.0,61090.0,0.023]
[1728011612482,0.23271799,61091.0,61090.0,0.023]
[1728011612683,0.18367608,61091.0,61090.0,0.023]
[1728011612895,0.25723894,61091.0,61090.0,0.023]
[1728011614034,0.18367608,61091.0,61090.0,0.023]
[1728011614243,0.23889592,61091.0,61090.0,0.012]
[1728011614452,0.25632705,61091.0,61090.0,0.012]
[1728011614666,0.25732705,61091.0,61090.0,0.022]
[1728011615155,0.25732705,61091.0,61090.0,0.01]
[1728011615371,0.18375713,61091.0,61090.0,0.021]
[1728011615576,0.25732705,61091.0,61090.0,0.021]
[1728011615785,0.28299247,61091.0,61085.0,0.0986]
[1728011615997,0.1637,61088.0,61085.0,0.0986]
[1728011616208,0.01743113,61087.0,61085.0,0.0986]
[1728011616425,0.01743113,61086.0,61085.0,0.0986]
[1728011616869,0.01744239,61086.0,61085.0,0.0986]
[1728011617073,0.01744239,61086.0,61085.0,0.1086]
[1728011617572,0.163701,61087.0,61085.0,0.1086]
[1728011617788,0.01744324,61086.0,61085.0,0.1086]
[1728011618013,0.01744324,61086.0,61084.0,0.0814]
[1728011618221,0.01744324,61085.0,61084.0,0.0814]
[1728011618436,0.01744324,61085.0,61082.0,0.092618]
[1728011618663,0.163701,61087.0,61082.0,0.25633]
[1728011618664,0.01744324,61084.0,61082.0,0.25633]
[1728011618915,0.01744324,61083.0,61082.0,0.25633]
[1728011619361,0.24468224,61088.0,61085.0,0.012]
[1728011619362,0.164703,61086.0,61085.0,0.012]
[1728011619577,0.18217338,61086.0,61085.0,0.012]
[1728011619792,0.163707,61085.0,61082.0,0.014818]
[1728011620014,0.18117938,61084.0,61082.0,0.000818]
[1728011620228,0.01747038,61083.0,61082.0,0.000818]
[1728011620435,0.01747038,61083.0,61082.0,0.014818]
[1728011620646,0.2312453,61083.0,61082.0,0.028818]
[1728011620860,0.25577727,61083.0,61082.0,0.028818]
[1728011621091,0.27930923,61083.0,61082.0,0.014818]
[1728011621322,0.25471872,61083.0,61082.0,0.014818]
[1728011621739,0.25471872,61083.0,61082.0,0.000818]
[1728011621740,0.35471872,61083.0,61082.0,0.000818]
[1728011621970,0.28116783,61083.0,61082.0,0.014818]
[1728011622231,0.35470186,61083.0,61082.0,0.000818]
[1728011622458,0.35470186,61083.0,61082.0,0.004818]
[1728011622702,0.35570186,61083.0,61082.0,0.008818]
[1728011623138,0.35470186,61083.0,61082.0,0.001818]
[1728011623370,0.28116783,61083.0,61082.0,0.000818]
[1728011624065,0.47417087,61083.0,61082.0,0.000818]
[1728011624309,0.59063586,61083.0,61082.0,0.000818]
[1728011624544,0.49261437,61083.0,61082.0,0.000818]
[1728011624800,0.5906402,61083.0,61082.0,0.000818]
[1728011625018,0.49261437,61083.0,61082.0,0.000818]
[1728011625437,0.59061751,61083.0,61082.0,0.000818]
[1728011625881,0.61628759,61083.0,61082.0,0.000818]
[1728011627469,0.59828513,61083.0,61082.0,0.000818]
[1728011627708,0.6156956,61083.0,61082.0,0.000818]
[1728011628363,0.51769246,61083.0,61082.0,0.000818]
[1728011629288,0.73897399,61083.0,61082.0,0.000818]
[1728011629505,0.59092238,61083.0,61082.0,0.000818]
[1728011629723,0.73811416,61083.0,61082.0,0.000818]
[1728011630393,0.73711416,61083.0,61082.0,0.000818]
[1728011630610,0.73711416,61083.0,61082.0,0.001818]
[1728011630611,0.59563805,61083.0,61082.0,0.001818]
[1728011630833,0.7444983,61083.0,61082.0,0.002818]
[1728011631051,0.7384983,61083.0,61082.0,0.001818]
[1728011631272,0.7324983,61083.0,61082.0,0.000818]
[1728011631482,0.7404983,61083.0,61082.0,0.001818]
[1728011632655,0.7464983,61083.0,61082.0,0.002818]
[1728011632885,0.89446799,61083.0,61082.0,0.002818]
[1728011635361,0.77217029,61083.0,61082.0,0.002818]
[1728011636262,0.89446799,61083.0,61082.0,0.002818]
[1728011636487,0.77217029,61083.0,61082.0,0.002818]
[1728011637156,0.75485051,61083.0,61082.0,0.002818]
[1728011637375,0.77218536,61083.0,61082.0,0.002818]
[1728011637613,0.87000235,61083.0,61082.0,0.002818]
[1728011637846,0.77137454,61083.0,61082.0,0.002818]
[1728011639973,0.77137999,61083.0,61082.0,0.002818]
[1728011641095,0.77138314,61083.0,61082.0,0.002818]
[1728011641321,0.86911679,61083.0,61082.0,0.002818]
[1728011641581,1.25498821,61083.0,61082.0,0.002818]
[1728011641813,0.263714,61082.0,61081.0,0.00037939]
[1728011642059,0.63678736,61082.0,61081.0,0.00037939]
[1728011642496,0.61562413,61082.0,61081.0,0.00037939]
[1728011642965,0.7144635,61082.0,61081.0,0.00037939]
[1728011643183,0.7962635,61082.0,61081.0,0.00137939]
[1728011644092,0.8042635,61082.0,61081.0,0.00237939]
[1728011644329,0.67872303,61082.0,61081.0,0.00237939]
[1728011644564,0.8042635,61082.0,61081.0,0.00237939]
[1728011646074,0.8035377,61082.0,61081.0,0.00237939]
[1728011646284,0.61155488,61082.0,61081.0,0.00237939]
[1728011646509,0.62887327,61082.0,61081.0,0.00237939]
[1728011646721,0.72664302,61082.0,61081.0,0.00237939]
[1728011648063,0.75231626,61082.0,61081.0,0.00237939]
[1728011648275,0.65454651,61082.0,61081.0,0.00237939]
[1728011649402,0.63722812,61082.0,61081.0,0.00237939]
[1728011649626,0.65458133,61082.0,61081.0,0.00237939]
[1728011649898,0.62682223,61082.0,61081.0,0.00237939]
[1728011650117,0.39408706,61082.0,61081.0,0.17177939]
[1728011651745,0.32074045,61082.0,61081.0,0.17177939]
[1728011651983,0.44628092,61082.0,61081.0,0.00237939]
[1728011652451,0.39408706,61082.0,61081.0,0.00237939]
[1728011652674,0.32074045,61082.0,61081.0,0.00237939]
[1728011652893,0.39413034,61082.0,61081.0,0.00237939]
[1728011654910,0.32078373,61082.0,61081.0,0.00237939]
[1728011655141,0.32241973,61082.0,61081.0,0.00237939]
[1728011655374,0.39581829,61082.0,61081.0,0.00237939]
[1728011655598,0.62911587,61082.0,61081.0,0.00237939]
[1728011656337,0.62911032,61082.0,61081.0,0.00237939]
[1728011657517,0.62925131,61082.0,61081.0,0.00237939]
[1728011657937,0.53132895,61082.0,61081.0,0.00237939]
[1728011658170,0.53143554,61082.0,61081.0,0.00237939]
[1728011658402,0.65383692,61082.0,61081.0,0.00237939]
[1728011658839,0.65384685,61082.0,61081.0,0.00237939]
[1728011659481,0.62817361,61082.0,61081.0,0.00237939]
[1728011659919,0.50577223,61082.0,61081.0,0.00237939]
[1728011662189,0.65265388,61082.0,61081.0,0.00237939]
[1728011662408,0.50577223,61082.0,61081.0,0.00237939]
[1728011662657,0.53144517,61082.0,61081.0,0.00237939]
[1728011662900,0.67847799,61082.0,61081.0,0.00237939]
[1728011663119,0.6785133,61082.0,61081.0,0.00237939]
[1728011663350,0.53148048,61082.0,61081.0,0.00237939]
[1728011663802,0.50580754,61082.0,61081.0,0.00237939]
[1728011664713,0.52293368,61082.0,61081.0,0.00237939]
[1728011666019,0.54860654,61082.0,61081.0,0.00237939]
[1728011667143,0.52293368,61082.0,61081.0,0.00237939]
[1728011668275,0.68817554,61082.0,61081.0,0.00237939]
[1728011668922,0.52293368,61082.0,61081.0,0.00237939]
[1728011669148,0.68817554,61082.0,61081.0,0.00237939]
[1728011670046,0.71332847,61082.0,61081.0,0.00237939]
[1728011670549,1.0046919,61082.0,61081.0,0.00237939]
[1728011671227,0.71332847,61082.0,61081.0,0.00237939]
[1728011672356,0.54769057,61082.0,61081.0,0.00237939]
[1728011673288,0.839054,61082.0,61081.0,0.00237939]
[1728011673538,0.82162919,61082.0,61081.0,0.00237939]
[1728011673963,0.5476927,61082.0,61081.0,0.00237939]
[1728011674813,0.54780486,61082.0,61081.0,0.00237939]
[1728011675707,0.71349735,61082.0,61081.0,0.00237939]
[1728011676646,0.68782446,61082.0,61081.0,0.00237939]
[1728011676873,0.67039752,61082.0,61081.0,0.00237939]
[1728011677304,0.68784417,61082.0,61081.0,0.00237939]
[1728011679685,0.68794351,61082.0,61081.0,0.00237939]
[1728011679898,0.71361603,61082.0,61081.0,0.00237939]
[1728011680574,0.71362039,61082.0,61081.0,0.00237939]
[1728011681010,0.69616938,61082.0,61081.0,0.00237939]
[1728011681242,0.71362024,61082.0,61081.0,0.00237939]
[1728011686535,0.68794772,61082.0,61081.0,0.00237939]
[1728011687421,0.67049686,61082.0,61081.0,0.00237939]
[1728011687639,0.6879448,61082.0,61081.0,0.00237939]
[1728011689339,0.68768733,61082.0,61081.0,0.00237939]
[1728011689750,0.71335989,61082.0,61081.0,0.00237939]
[1728011690193,0.54761668,61082.0,61081.0,0.08287939]
[1728011690853,0.53016874,61082.0,61081.0,0.08287939]
[1728011691067,0.54761948,61082.0,61081.0,0.08287939]
[1728011691288,0.53016874,61082.0,61081.0,0.08287939]
[1728011691719,0.54761994,61082.0,61081.0,0.08287939]
[1728011694382,0.53016874,61082.0,61081.0,0.08287939]
[1728011694623,0.54761781,61082.0,61081.0,0.08287939]
[1728011696350,0.52194525,61082.0,61081.0,0.08287939]
[1728011696565,0.52194525,61082.0,61081.0,0.00237939]
[1728011697892,0.5219517,61082.0,61081.0,0.00237939]
[1728011699495,0.54762472,61082.0,61081.0,0.00237939]
[1728011699958,0.59810568,61082.0,61081.0,0.00237939]
[1728011700352,0.54762472,61082.0,61081.0,0.00237939]
[1728011700570,0.83885277,61082.0,61081.0,0.00237939]
[1728011700791,0.82139725,61082.0,61081.0,0.00237939]
[1728011701014,0.5476307,61082.0,61081.0,0.00237939]
[1728011701227,0.83885875,61082.0,61081.0,0.00237939]
[1728011701441,0.5476307,61082.0,61081.0,0.00237939]
[1728011706311,0.59915768,61082.0,61081.0,0.00237939]
[1728011707841,0.52195768,61082.0,61081.0,0.00237939]
[1728011709668,0.54763195,61082.0,61081.0,0.00237939]
[1728011710381,0.53017045,61082.0,61081.0,0.00237939]
[1728011710812,0.54761676,61082.0,61081.0,0.00237939]
[1728011711896,0.54696179,61082.0,61081.0,0.00237939]
[1728011716404,0.52951548,61082.0,61081.0,0.00237939]
[1728011716651,0.54707579,61082.0,61081.0,0.00237939]
[1728011719284,0.54707579,61082.0,61081.0,3.9e-07]
[1728011719285,0.90624559,61082.0,61081.0,3.9e-07]
[1728011719513,0.90624559,61082.0,61069.0,0.000819]
[1728011719514,1.03174526,61082.0,61069.0,0.000819]
[1728011719752,0.55493276,61070.0,61069.0,0.000819]
[1728011719979,0.76241467,61070.0,61069.0,0.000819]
[1728011720438,0.66284315,61070.0,61069.0,0.000819]
[1728011720900,0.63716558,61070.0,61069.0,0.000819]
[1728011721343,0.64516558,61070.0,61069.0,0.001819]
[1728011721621,0.65043574,61070.0,61069.0,0.001819]
[1728011722304,0.62743574,61070.0,61069.0,0.001819]
[1728011722522,0.50989527,61070.0,61069.0,0.080719]
[1728011722993,0.24614927,61070.0,61069.0,0.180419]
[1728011723237,0.53248065,61070.0,61069.0,0.180419]
[1728011723679,0.55815539,61070.0,61069.0,0.180419]
[1728011724150,0.55815539,61070.0,61069.0,0.179419]
[1728011724151,0.55015539,61070.0,61069.0,0.179419]
[1728011724402,0.55115539,61070.0,61069.0,0.178817]
[1728011724639,0.65115539,61070.0,61069.0,0.178817]
[1728011724861,0.52052661,61070.0,61069.0,0.177817]
[1728011725090,0.52752661,61070.0,61069.0,0.178817]
[1728011725537,0.52752661,61070.0,61069.0,0.177817]
[1728011725538,0.52052661,61070.0,61069.0,0.177817]
[1728011725967,0.52327359,61070.0,61069.0,0.177817]
[1728011727063,0.49759885,61070.0,61069.0,0.177817]
[1728011728847,0.62026122,61070.0,61069.0,0.177817]
[1728011729307,0.49759885,61070.0,61069.0,0.177817]
[1728011729743,0.62026214,61070.0,61069.0,0.177817]
[1728011729971,0.49758278,61070.0,61069.0,0.177817]
[1728011730180,0.52325755,61070.0,61069.0,0.177817]
[1728011730418,0.50591982,61070.0,61069.0,0.177817]
[1728011730672,0.52326867,61070.0,61069.0,0.177817]
[1728011731342,0.48218689,61070.0,61069.0,0.177817]
[1728011731791,0.35952267,61070.0,61069.0,0.177817]
[1728011732024,0.48218689,61070.0,61069.0,0.177817]
[1728011733595,0.48220167,61070.0,61069.0,0.341566]
[1728011733810,0.48220167,61070.0,61069.0,0.177817]
[1728011735155,0.48120167,61070.0,61069.0,0.177817]
[1728011735369,0.1440384,61070.0,61069.0,0.177817]
[1728011735590,0.48120581,61070.0,61069.0,0.177817]
[1728011736032,0.45553104,61070.0,61069.0,0.177817]
[1728011737196,0.45553429,61070.0,61069.0,0.177817]
[1728011737645,0.45553429,61070.0,61069.0,0.341566]
[1728011737646,0.09296717,61070.0,61069.0,0.341566]
[1728011737868,0.06843149,61070.0,61069.0,0.341566]
[1728011738103,0.01936688,61070.0,61069.0,0.341566]
[1728011738334,0.01736688,61070.0,61069.0,0.341566]
[1728011738576,0.01736688,61070.0,61069.0,0.345566]
[1728011738809,0.01736688,61070.0,61069.0,0.341566]
[1728011739019,0.01736688,61070.0,61069.0,0.345566]
[1728011739443,0.04303992,61070.0,61069.0,0.341566]
[1728011739866,0.04303992,61070.0,61069.0,0.346566]
[1728011740088,0.04403992,61070.0,61069.0,0.352566]
[1728011741029,0.02667304,61070.0,61069.0,0.352566]
[1728011741248,0.04404705,61070.0,61069.0,0.352566]
[1728011741479,0.0440454,61070.0,61069.0,0.352566]
[1728011742632,0.0440454,61070.0,61069.0,0.188817]
[1728011743056,0.0440454,61070.0,61069.0,0.352566]
[1728011744608,0.04403132,61070.0,61069.0,0.352566]
[1728011745091,0.04403132,61070.0,61069.0,0.188817]
[1728011745312,0.04403132,61070.0,61069.0,0.352566]
[1728011746892,0.01835828,61070.0,61069.0,0.352566]
[1728011747344,0.01999628,61070.0,61069.0,0.352566]
[1728011749103,0.01999628,61070.0,61069.0,0.188817]
[1728011749323,0.01999628,61070.0,61069.0,0.352566]
[1728011750224,0.0456698,61070.0,61069.0,0.352566]
[1728011751777,0.04567289,61070.0,61069.0,0.352566]
[1728011752711,0.04567289,61070.0,61069.0,0.354566]
[1728011755288,0.04559795,61070.0,61069.0,0.354566]
[1728011757263,0.01992443,61070.0,61069.0,0.354566]
[1728011758846,0.16372,61080.0,61069.0,0.354566]
[1728011758847,0.04903045,61081.0,61079.0,0.1654]
[1728011759065,0.29534869,61083.0,61081.0,0.329117]
[1728011759279,0.24631824,61083.0,61081.0,0.329117]
[1728011759495,0.001636,61083.0,61081.0,0.329117]
[1728011759712,0.001636,61083.0,61081.0,0.45465747]
[1728011760173,0.001636,61083.0,61081.0,0.45665747]
[1728011760396,0.001636,61083.0,61081.0,0.45865747]
[1728011760626,0.02730241,61082.0,61081.0,0.331117]
[1728011760850,0.02730241,61082.0,61081.0,0.329117]
[1728011761087,0.02830241,61082.0,61081.0,0.338117]
[1728011761323,0.02730241,61082.0,61081.0,0.329117]
[1728011761577,0.02730241,61082.0,61081.0,0.1654]
[1728011761810,0.02730241,61082.0,61081.0,0.1854]
[1728011761811,0.02930241,61082.0,61081.0,0.1854]
[1728011762241,0.02930241,61082.0,61081.0,0.349117]
[1728011762242,0.003636,61082.0,61081.0,0.349117]
[1728011763127,0.002636,61082.0,61081.0,0.339117]
[1728011763355,0.002636,61082.0,61081.0,0.348117]
[1728011763582,0.002636,61082.0,61081.0,0.1744]
[1728011763793,0.16635,61082.0,61081.0,0.1834]
[1728011764029,0.16635,61082.0,61081.0,0.1744]
[1728011764253,0.16735,61082.0,61081.0,0.1754]
[1728011764462,0.004636,61082.0,61081.0,0.1854]
[1728011765124,0.16835,61082.0,61081.0,0.02]
[1728011765413,0.24304915,61082.0,61081.0,0.02]
[1728011765630,0.41659482,61082.0,61081.0,0.02]
[1728011765846,0.62959471,61082.0,61081.0,0.02]
[1728011766282,0.6288637,61082.0,61081.0,0.01]
[1728011766511,0.48092639,61082.0,61081.0,0.01]
[1728011766743,0.163741,61072.0,61071.0,0.32588224]
[1728011767192,0.163741,61072.0,61071.0,0.0812]
[1728011768227,0.163741,61072.0,61071.0,0.0882]
[1728011769080,0.04891007,61075.0,61071.0,0.0882]
[1728011769297,0.21264007,61076.0,61072.0,0.16374]
[1728011769528,0.04891007,61076.0,61072.0,0.16374]
[1728011769738,0.163728,61077.0,61073.0,0.163736]
[1728011769739,0.04891007,61077.0,61073.0,0.163736]
[1728011769950,0.04891007,61077.0,61071.0,0.415686]
[1728011769951,0.07458266,61076.0,61072.0,0.16374]
[1728011770425,0.163734,61075.0,61071.0,0.0832]
[1728011770661,0.01728464,61074.0,61071.0,0.0822]
[1728011770898,0.01728464,61073.0,61071.0,0.244942]
[1728011771140,0.0172845,61073.0,61071.0,0.0812]
[1728011771383,0.0172845,61072.0,61071.0,0.0812]
[1728011771618,0.03456938,61072.0,61071.0,0.245943]
[1728011771856,0.01728488,61072.0,61071.0,0.245943]
[1728011773126,0.01728488,61072.0,61071.0,0.247943]
[1728011773590,0.01728488,61072.0,61071.0,0.244943]
[1728011773827,0.01728488,61072.0,61071.0,0.252943]
[1728011774066,0.01728488,61072.0,61071.0,0.249943]
[1728011774544,0.0256723,61072.0,61071.0,0.254943]
[1728011774782,0.04297721,61072.0,61071.0,0.0912]
[1728011775497,0.04297721,61072.0,61071.0,0.254943]
[1728011775760,0.04297721,61072.0,61071.0,0.0912]
[1728011775990,0.04297721,61072.0,61071.0,0.0862]
[1728011776477,0.04297721,61072.0,61071.0,0.248943]
[1728011776731,0.01730491,61072.0,61071.0,0.248943]
[1728011776955,0.01729871,61072.0,61071.0,0.248943]
[1728011777185,0.01729871,61072.0,61071.0,0.244943]
[1728011777427,0.01729871,61072.0,61071.0,0.248943]
[1728011777664,0.01729871,61072.0,61071.0,0.0852]
[1728011779777,0.04297104,61072.0,61071.0,0.0852]
[1728011780022,0.01729871,61072.0,61071.0,0.0852]
[1728011780686,0.01729871,61072.0,61071.0,0.248943]
[1728011781893,0.04894948,61075.0,61071.0,0.248943]
[1728011782135,0.01730524,61074.0,61071.0,0.248943]
[1728011782382,0.01730524,61073.0,61071.0,0.248943]
[1728011782613,0.01730524,61072.0,61071.0,0.248943]
[1728011782929,0.01730524,61072.0,61071.0,0.246943]
[1728011783134,0.01730524,61072.0,61071.0,0.0832]
[1728011783839,0.01730524,61072.0,61071.0,0.0812]
[1728011784056,0.01730524,61072.0,61071.0,0.0832]
[1728011784708,0.01730524,61072.0,61071.0,0.246943]
[1728011785147,0.01730524,61072.0,61071.0,0.248943]
[1728011788445,0.04895699,61074.0,61071.0,0.248943]
[1728011788656,0.01730772,61073.0,61071.0,0.248943]
[1728011788872,0.01730772,61072.0,61071.0,0.248943]
[1728011789311,0.01730772,61072.0,61071.0,0.246943]
[1728011789489,0.01730772,61072.0,61071.0,0.244943]
[1728011790138,0.01730772,61072.0,61071.0,0.0812]
[1728011790354,0.04298019,61072.0,61071.0,0.0812]
[1728011790551,0.04298019,61072.0,61071.0,0.0832]
[1728011791264,0.04298019,61072.0,61071.0,0.0852]
[1728011791501,0.01730772,61072.0,61071.0,0.0852]
[1728011792393,0.01730772,61072.0,61071.0,0.248943]
[1728011793666,0.01730772,61072.0,61071.0,0.0852]
[1728011793872,0.01730772,61072.0,61071.0,0.248943]
[1728011794795,0.04298017,61072.0,61071.0,0.248943]
[1728011795256,0.02567245,61072.0,61071.0,0.248943]
[1728011795477,0.04298181,61072.0,61071.0,0.248943]
[1728011795918,0.04298181,61072.0,61071.0,0.0852]
[1728011796157,0.04298181,61072.0,61071.0,0.248943]
[1728011796806,0.04298181,61072.0,61071.0,0.0852]
[1728011797886,0.02731045,61072.0,61071.0,0.248943]
[1728011798746,0.04462057,61072.0,61071.0,0.248943]
[1728011799815,0.02731045,61072.0,61071.0,0.248943]
[1728011800253,0.02731045,61072.0,61071.0,0.0852]
[1728011800692,0.01895239,61072.0,61071.0,0.0852]
[1728011801600,0.18269827,61072.0,61071.0,0.004]
[1728011803853,0.20837154,61072.0,61071.0,0.004]
[1728011805225,0.04463054,61072.0,61071.0,0.265243]
[1728011805449,0.04461695,61072.0,61071.0,0.342743]
[1728011805896,0.04461695,61072.0,61071.0,0.179]
[1728011806997,0.20835795,61072.0,61071.0,0.179]
[1728011807211,0.04461695,61072.0,61071.0,0.179]
[1728011807420,0.09356386,61072.0,61071.0,0.179]
[1728011808501,0.04461695,61072.0,61071.0,0.179]
[1728011809397,0.11803732,61072.0,61071.0,0.179]
[1728011810066,0.28177832,61072.0,61071.0,0.179]
[1728011810549,0.20835795,61072.0,61071.0,0.179]
[1728011811395,0.5153329,61072.0,61071.0,0.179]
[1728011811633,0.5153329,61072.0,61071.0,0.004]
[1728011812282,0.49802722,61072.0,61071.0,0.004]
[1728011812471,0.51534546,61072.0,61071.0,0.004]
[1728011815889,0.51535349,61072.0,61071.0,0.004]
[1728011816343,0.51535382,61072.0,61071.0,0.004]
[1728011816975,0.48968055,61072.0,61071.0,0.004]
[1728011819849,0.48981696,61072.0,61071.0,0.004]
[1728011820291,0.51549007,61072.0,61071.0,0.004]
[1728011820542,0.35174907,61072.0,61071.0,0.004]
[1728011820976,0.35174907,61072.0,61071.0,0.167743]
[1728011821197,0.35174907,61072.0,61071.0,0.258143]
[1728011821669,0.35176888,61072.0,61071.0,0.258143]
[1728011821871,0.35176888,61072.0,61071.0,0.34331757]
[1728011821872,0.01898441,61072.0,61071.0,0.34331757]
[1728011822091,0.01898441,61072.0,61071.0,0.342043]
[1728011822304,0.001638,61072.0,61071.0,0.53322971]
[1728011822530,0.001638,61076.0,61075.0,0.366033]
[1728011822725,0.001638,61076.0,61075.0,0.49157347]
[1728011823319,0.001638,61076.0,61075.0,0.65476018]
[1728011823534,0.001636,61082.0,61081.0,0.193717]
[1728011823780,0.001636,61082.0,61081.0,0.52920371]
[1728011824947,0.002636,61082.0,61081.0,0.54320371]
[1728011825133,0.02829951,61082.0,61081.0,0.54320371]
[1728011826096,0.02929951,61082.0,61081.0,0.55720371]
[1728011827244,0.003636,61082.0,61081.0,0.55720371]
[1728011827689,0.003636,61082.0,61081.0,0.56134588]
[1728011835124,0.02929872,61082.0,61081.0,0.56134588]
[1728011837208,0.003636,61082.0,61081.0,0.56134588]
[1728011840583,0.0292989,61082.0,61081.0,0.56134588]
[1728011842781,0.0292989,61082.0,61081.0,0.48055747]
[1728011842782,0.0282989,61082.0,61081.0,0.48055747]
[1728011843029,0.0272989,61082.0,61081.0,0.46855747]
[1728011843279,0.0292989,61082.0,61081.0,0.49055747]
[1728011843799,0.0292989,61082.0,61081.0,0.185717]
[1728011844539,0.0282989,61082.0,61081.0,0.174717]
[1728011844787,0.0282989,61082.0,61081.0,0.011]
[1728011845035,0.28834618,61082.0,61081.0,0.022]
[1728011845517,0.28834743,61082.0,61081.0,0.022]
[1728011845761,0.28734743,61082.0,61081.0,0.011]
[1728011845987,0.12263343,61082.0,61076.0,7e-05]
[1728011846224,0.163721,61080.0,61076.0,7e-05]
[1728011846445,0.18075653,61079.0,61076.0,0.000888]
[1728011846671,0.01703453,61078.0,61076.0,0.000888]
[1728011846884,0.18076053,61078.0,61076.0,0.000888]
[1728011847130,0.18076153,61077.0,61076.0,0.000888]
[1728011847832,0.01703453,61077.0,61076.0,0.164618]
[1728011848062,0.01703453,61078.0,61076.0,0.164618]
[1728011848281,0.01703453,61078.0,61076.0,0.29015847]
[1728011848508,0.01703453,61078.0,61076.0,0.12642847]
[1728011848761,0.001,61077.0,61076.0,0.000888]
[1728011848984,0.01803453,61077.0,61076.0,0.000888]
[1728011849212,0.01703453,61077.0,61076.0,0.000888]
[1728011849428,0.01703453,61078.0,61076.0,0.000888]
[1728011849663,0.01703453,61077.0,61076.0,0.000888]
[1728011851078,0.01803453,61077.0,61076.0,0.000888]
[1728011851296,0.02003453,61077.0,61076.0,0.000888]
[1728011851760,0.01703453,61077.0,61076.0,0.000888]
[1728011851980,0.01903453,61077.0,61076.0,0.000888]
[1728011852447,0.01703453,61077.0,61076.0,0.000888]
[1728011852664,0.01703453,61078.0,61076.0,0.000888]
[1728011852882,0.01703453,61077.0,61076.0,0.000888]
[1728011853333,0.01803453,61077.0,61076.0,0.000888]
[1728011853556,0.01703453,61077.0,61076.0,0.000888]
[1728011854008,0.04270454,61077.0,61076.0,0.000888]
[1728011854229,0.20643154,61077.0,61076.0,0.000888]
[1728011854459,0.18939701,61077.0,61076.0,0.000888]
[1728011854668,0.20647467,61077.0,61076.0,0.000888]
[1728011857477,0.18080466,61077.0,61076.0,0.000888]
[1728011857711,0.18480466,61077.0,61076.0,0.000888]
[1728011858431,0.18780466,61077.0,61076.0,0.000888]
[1728011859751,0.28610466,61077.0,61076.0,0.000888]
[1728011860196,0.28774066,61077.0,61076.0,0.000888]
[1728011860673,0.29633729,61077.0,61076.0,0.000888]
[1728011860897,0.31333782,61077.0,61076.0,0.000888]
[1728011862003,0.41333782,61077.0,61076.0,0.000888]
[1728011864554,0.41332156,61077.0,61076.0,0.000888]
[1728011867968,0.40932156,61077.0,61076.0,0.000888]
[1728011868399,0.41532156,61077.0,61076.0,0.001888]
[1728011868838,0.41532156,61077.0,61064.0,0.24468224]
[1728011868839,0.163759,61065.0,61064.0,0.17842424]
[1728011869064,0.18074327,61065.0,61064.0,0.17842424]
[1728011869313,0.163762,61064.0,61063.0,0.000819]
[1728011869569,0.18074627,61064.0,61063.0,0.000819]
[1728011871126,0.18074627,61064.0,61063.0,0.002819]
[1728011872934,0.18074627,61064.0,61063.0,0.001819]
[1728011873153,0.18074627,61064.0,61063.0,0.002819]
[1728011873377,0.18074627,61064.0,61063.0,0.001819]
[1728011873600,0.20642294,61064.0,61063.0,0.002819]
[1728011874036,0.18943867,61064.0,61063.0,0.001819]
[1728011874246,0.20657497,61064.0,61063.0,0.001819]
[1728011874473,0.18943867,61064.0,61063.0,0.002819]
[1728011874694,0.18089981,61064.0,61063.0,0.002819]
[1728011877389,0.163762,61064.0,61063.0,0.002819]
[1728011877608,0.20657875,61064.0,61063.0,0.002819]
[1728011879181,0.18090205,61064.0,61063.0,0.002819]
[1728011881156,0.18090205,61064.0,61063.0,0.001819]
[1728011881814,0.18090205,61064.0,61063.0,0.002819]
[1728011882514,0.20657862,61064.0,61063.0,0.002819]
[1728011883014,0.04278486,61064.0,61063.0,0.30545272]
[1728011883248,0.04278486,61064.0,61063.0,0.46921772]
[1728011883249,0.02567657,61064.0,61063.0,0.46921772]
[1728011883482,0.04272868,61064.0,61063.0,0.46921772]
[1728011883724,0.01705211,61064.0,61063.0,0.46921772]
[1728011886258,0.01708474,61064.0,61063.0,0.46921772]